bitfinex/quotes_SOLUSD_20251118
["timestamp","ask_amount","ask_price","bid_price","bid_amount"]
[1763451735529,13.6974349,137.6,137.56,4.64]
[1763451736224,9.78882769,137.58,137.56,4.64]
[1763451736721,9.78882769,137.58,137.57,4.62]
[1763451740634,9.78882769,137.58,137.5,0.2]
[1763451740635,9.78882769,137.57,137.5,0.2]
[1763451740850,9.78882769,137.52,137.5,0.2]
[1763451741009,22.77626259,137.52,137.5,0.2]
[1763451741207,10.46882769,137.52,137.51,4.62]
[1763451741436,23.45626259,137.52,137.51,4.62]
[1763451741732,41.57722259,137.52,137.5,0.2]
[1763451741938,23.45626259,137.51,137.5,0.2]
[1763451742106,12.9874349,137.48,137.47,4.82]
[1763451742310,9.78882769,137.49,137.47,4.82]
[1763451742843,12.9874349,137.53,137.48,0.66]
[1763451743134,9.78882769,137.52,137.48,0.66]
[1763451745533,22.77626259,137.54,137.48,0.66]
[1763451746137,9.78882769,137.52,137.48,0.66]
[1763451746338,9.78882769,137.52,137.48,13.6474349]
[1763451746610,12.9874349,137.54,137.49,0.66]
[1763451746922,9.78882769,137.53,137.49,0.66]
[1763451748243,12.9874349,137.57,137.5,12.9874349]
[1763451748451,9.78882769,137.56,137.51,17.5874349]
[1763451748818,9.78882769,137.56,137.52,0.66]
[1763451749234,9.78882769,137.55,137.52,0.66]
[1763451750242,22.77626259,137.57,137.52,0.66]
[1763451751422,23.45626259,137.57,137.52,0.66]
[1763451752560,22.77626259,137.57,137.52,0.66]
[1763451752721,22.77626259,137.57,137.52,13.6474349]
[1763451752722,9.78882769,137.57,137.52,13.6474349]
[1763451753342,9.78882769,137.57,137.53,0.66]
[1763451754318,12.9874349,137.57,137.5,0.66]
[1763451754524,13.6674349,137.57,137.51,4.58]
[1763451754736,13.6674349,137.57,137.5,13.6474349]
[1763451754934,9.78882769,137.55,137.51,5.24]
[1763451755350,9.78882769,137.56,137.52,0.66]
[1763451755551,12.9874349,137.58,137.52,13.6474349]
[1763451755844,9.78882769,137.57,137.52,0.66]
[1763451756047,9.78882769,137.57,137.53,0.66]
[1763451756948,22.77626259,137.59,137.53,13.6474349]
[1763451757145,18.12096,137.62,137.54,12.9874349]
[1763451757340,9.78882769,137.6,137.55,4.58]
[1763451757536,9.78882769,137.59,137.55,5.24]
[1763451757721,9.78882769,137.59,137.56,0.66]
[1763451758662,40.89722259,137.61,137.56,0.66]
[1763451759164,41.57722259,137.61,137.56,0.66]
[1763451760765,27.90978769,137.61,137.56,0.66]
[1763451761439,0.68,137.63,137.56,0.66]
[1763451761440,9.78882769,137.62,137.57,7.46613524]
[1763451761696,9.78882769,137.62,137.56,8.12613524]
[1763451761953,10.47882769,137.67,137.58,7.46613524]
[1763451762165,9.78882769,137.64,137.59,5.29]
[1763451762527,9.78882769,137.64,137.6,0.71]
[1763451762730,9.78882769,137.64,137.6,8.17613524]
[1763451763149,9.78882769,137.62,137.61,4.58]
[1763451763345,17.25496293,137.62,137.61,4.58]
[1763451763554,17.94496293,137.62,137.61,4.58]
[1763451763743,17.94496293,137.62,137.56,8.17613524]
[1763451763944,17.94496293,137.62,137.57,4.58]
[1763451764145,17.94496293,137.62,137.58,4.58]
[1763451765252,10.47882769,137.62,137.58,4.58]
[1763451766469,9.78882769,137.63,137.59,8.17613524]
[1763451766671,9.78882769,137.64,137.59,0.71]
[1763451766840,9.78882769,137.64,137.59,8.17613524]
[1763451767359,9.78882769,137.67,137.62,7.46613524]
[1763451767666,10.47882769,137.67,137.63,4.56]
[1763451768354,10.47882769,137.67,137.62,8.17613524]
[1763451768558,10.47882769,137.67,137.63,4.56]
[1763451769959,10.47882769,137.67,137.63,5.27]
[1763451770264,17.94496293,137.67,137.63,4.56]
[1763451771565,9.78882769,137.69,137.64,0.71]
[1763451771770,9.78882769,137.69,137.65,7.46613524]
[1763451771967,8.25613524,137.71,137.65,7.46613524]
[1763451772144,9.78882769,137.7,137.65,8.17613524]
[1763451772544,9.78882769,137.7,137.66,0.71]
[1763451772743,9.78882769,137.7,137.67,4.56]
[1763451773171,9.78882769,137.7,137.68,4.56]
[1763451773465,9.88882769,137.71,137.68,4.56]
[1763451773764,0.1,137.71,137.68,5.27]
[1763451773967,0.1,137.71,137.69,0.71]
[1763451774357,0.1,137.71,137.68,4.56]
[1763451774553,0.1,137.71,137.69,4.56]
[1763451775066,7.56613524,137.71,137.69,4.56]
[1763451775367,7.56613524,137.71,137.68,0.71]
[1763451775368,7.56613524,137.71,137.7,4.56]
[1763451775770,0.1,137.71,137.7,4.56]
[1763451776699,0.1,137.71,137.7,4.54]
[1763451778457,7.56613524,137.71,137.7,4.54]
[1763451778857,0.1,137.71,137.7,4.54]
[1763451779160,0.1,137.71,137.7,5.25]
[1763451780873,0.1,137.71,137.7,12.71613524]
[1763451781746,0.1,137.71,137.7,8.17613524]
[1763451781979,0.1,137.71,137.64,9.78882769]
[1763451782184,7.46613524,137.7,137.65,0.71]
[1763451782353,7.46613524,137.68,137.66,4.54]
[1763451782688,10.57882769,137.71,137.66,4.54]
[1763451782689,9.78882769,137.69,137.66,4.54]
[1763451782854,9.78882769,137.69,137.66,5.25]
[1763451783054,17.25496293,137.69,137.66,4.54]
[1763451783380,17.25496293,137.69,137.66,0.71]
[1763451783683,17.25496293,137.69,137.67,4.54]
[1763451783978,17.25496293,137.69,137.68,4.54]
[1763451784359,9.78882769,137.69,137.68,4.54]
[1763451784553,0.1,137.71,137.68,5.25]
[1763451784869,0.1,137.71,137.69,0.71]
[1763451785179,0.1,137.71,137.68,5.25]
[1763451785476,7.56613524,137.71,137.68,5.25]
[1763451785682,0.1,137.71,137.69,0.71]
[1763451786387,0.1,137.71,137.69,8.17613524]
[1763451786588,0.1,137.71,137.7,0.71]
[1763451786788,0.1,137.71,137.7,8.17613524]
[1763451786952,0.1,137.75,137.7,8.17613524]
[1763451787150,0.1,137.75,137.72,7.46613524]
[1763451787378,0.1,137.75,137.73,4.52]
[1763451787579,0.1,137.75,137.74,0.71]
[1763451787755,0.1,137.75,137.74,8.17613524]
[1763451788079,0.1,137.75,137.74,0.71]
[1763451788858,0.1,137.75,137.74,5.23]
[1763451794199,0.1,137.75,137.74,0.71]
[1763451794394,8.16613524,137.83,137.74,30.81709524]
[1763451794693,17.35496293,137.84,137.78,7.46613524]
[1763451794890,10.58882769,137.84,137.79,4.52]
[1763451795187,10.58882769,137.84,137.79,12.70613524]
[1763451795188,0.1,137.84,137.79,12.70613524]
[1763451795383,0.1,137.84,137.8,8.18613524]
[1763451795804,0.1,137.84,137.81,0.72]
[1763451796105,0.7,137.83,137.78,0.72]
[1763451796409,0.7,137.83,137.79,4.52]
[1763451796410,8.16613524,137.83,137.79,4.52]
[1763451796976,0.1,137.84,137.79,5.24]
[1763451797278,0.1,137.84,137.8,8.18613524]
[1763451797493,0.1,137.84,137.81,0.72]
[1763451797688,0.1,137.84,137.82,4.52]
[1763451797980,18.05496293,137.84,137.83,4.52]
[1763451798277,10.58882769,137.84,137.83,4.52]
[1763451798888,18.05496293,137.84,137.77,7.46613524]
[1763451799089,9.78882769,137.77,137.72,7.46613524]
[1763451799289,7.46613524,137.75,137.69,0.72]
[1763451799485,7.46613524,137.75,137.7,4.52]
[1763451799687,9.78882769,137.75,137.7,11.98613524]
[1763451800000,9.78882769,137.75,137.72,7.46613524]
[1763451800189,8.12613524,137.8,137.73,4.52]
[1763451800395,0.66,137.8,137.75,7.46613524]
[1763451800911,0.66,137.8,137.75,8.15613524]
[1763451801508,0.66,137.8,137.73,12.67613524]
[1763451801509,7.46613524,137.79,137.73,12.67613524]
[1763451802004,8.12613524,137.79,137.73,12.67613524]
[1763451802203,9.78882769,137.78,137.73,12.67613524]
[1763451802411,9.78882769,137.78,137.74,7.46613524]
[1763451802702,10.44882769,137.78,137.74,7.46613524]
[1763451803115,0.66,137.78,137.74,7.46613524]
[1763451805185,0.66,137.78,137.73,4.52]
[1763451805406,8.12613524,137.78,137.73,4.52]
[1763451805602,8.12613524,137.78,137.71,7.46613524]
[1763451805811,9.78882769,137.76,137.71,7.46613524]
[1763451805995,9.78882769,137.76,137.7,5.21]
[1763451806190,10.44882769,137.76,137.72,7.46613524]
[1763451806500,10.44882769,137.76,137.71,7.46613524]
[1763451806731,10.44882769,137.76,137.72,7.46613524]
[1763451807082,0.66,137.75,137.72,7.46613524]
[1763451807979,0.66,137.75,137.71,7.46613524]
[1763451808587,0.66,137.75,137.7,5.21]
[1763451808588,9.78882769,137.74,137.69,7.46613524]
[1763451809004,0.66,137.73,137.7,7.46613524]
[1763451810186,0.66,137.82,137.72,7.46613524]
[1763451810390,8.12613524,137.83,137.75,7.46613524]
[1763451810593,25.58709524,137.82,137.75,7.46613524]
[1763451810790,9.78882769,137.81,137.75,7.46613524]
[1763451810988,10.44882769,137.81,137.75,7.46613524]
[1763451811205,0.66,137.8,137.75,7.46613524]
[1763451812799,9.78882769,137.79,137.74,25.58709524]
[1763451813329,0.66,137.78,137.74,25.58709524]
[1763451813631,10.44882769,137.79,137.75,7.46613524]
[1763451814491,8.12613524,137.78,137.71,12.67613524]
[1763451814926,9.78882769,137.76,137.71,4.52]
[1763451815214,0.66,137.77,137.73,7.46613524]
[1763451817126,0.66,137.77,137.66,0.69]
[1763451817127,18.12096,137.73,137.66,0.69]
[1763451817412,18.12096,137.73,137.62,7.99757979]
[1763451817413,9.78882769,137.72,137.65,7.46613524]
[1763451817585,9.78882769,137.72,137.67,7.46613524]
[1763451817792,10.44882769,137.72,137.67,7.46613524]
[1763451818110,0.66,137.71,137.67,7.46613524]
[1763451818800,0.66,137.71,137.68,7.46613524]
[1763451819001,0.66,137.71,137.63,18.12096]
[1763451819002,0.66,137.71,137.65,0.69]
[1763451819196,0.66,137.71,137.67,7.46613524]
[1763451819390,8.12613524,137.71,137.65,7.46613524]
[1763451819605,0.66,137.71,137.65,7.46613524]
[1763451819896,9.78882769,137.69,137.65,7.46613524]
[1763451820298,9.78882769,137.67,137.62,11.98613524]
[1763451820711,10.44882769,137.67,137.63,7.46613524]
[1763451821819,0.66,137.71,137.66,7.46613524]
[1763451822017,9.78882769,137.7,137.65,0.66]
[1763451822196,9.78882769,137.7,137.67,7.46613524]
[1763451822385,9.78882769,137.71,137.69,7.46613524]
[1763451822590,0.71,137.72,137.7,7.46613524]
[1763451822800,0.71,137.72,137.7,12.97219998]
[1763451823014,0.71,137.72,137.69,12.97219998]
[1763451823311,0.71,137.72,137.7,12.97219998]
[1763451824111,0.71,137.72,137.69,4.52]
[1763451824797,0.71,137.72,137.69,17.49219998]
[1763451826008,0.71,137.72,137.69,4.52]
[1763451826009,9.78882769,137.71,137.69,4.52]
[1763451826219,9.78882769,137.74,137.7,12.97219998]
[1763451826220,10.49882769,137.74,137.7,12.97219998]
[1763451826412,9.78882769,137.74,137.7,12.97219998]
[1763451826612,9.78882769,137.72,137.7,12.97219998]
[1763451827305,9.78882769,137.74,137.71,13.63219998]
[1763451827621,9.78882769,137.76,137.73,12.97219998]
[1763451827830,9.78882769,137.76,137.74,12.97219998]
[1763451829017,9.28882769,137.76,137.74,12.97219998]
[1763451829315,0.71,137.76,137.74,12.97219998]
[1763451829520,0.71,137.76,137.73,12.97219998]
[1763451831103,9.78882769,137.77,137.73,12.97219998]
[1763451831314,10.49882769,137.77,137.74,12.97219998]
[1763451833417,10.49882769,137.77,137.73,12.97219998]
[1763451834029,10.49882769,137.77,137.72,5.18]
[1763451834030,9.78882769,137.77,137.72,4.52]
[1763451834240,0.71,137.76,137.72,17.49219998]
[1763451834427,9.78882769,137.73,137.68,12.97219998]
[1763451834736,0.71,137.76,137.71,12.97219998]
[1763451834903,10.49882769,137.75,137.71,12.97219998]
[1763451835415,0.71,137.74,137.71,12.97219998]
[1763451836336,18.12096,137.77,137.71,12.97219998]
[1763451836512,9.78882769,137.75,137.71,13.63219998]
[1763451836934,0.71,137.75,137.71,13.63219998]
[1763451839903,0.71,137.75,137.72,4.52]
[1763451841147,9.78882769,137.76,137.73,12.97219998]
[1763451841315,12.97219998,137.79,137.75,12.97219998]
[1763451841316,9.78882769,137.78,137.75,12.97219998]
[1763451841515,9.78882769,137.78,137.74,12.97219998]
[1763451841955,0.71,137.77,137.74,12.97219998]
[1763451842247,0.71,137.79,137.75,17.49219998]
[1763451842543,0.71,137.79,137.75,18.15219998]
[1763451842743,0.71,137.79,137.75,17.49219998]
[1763451843641,0.71,137.79,137.75,4.52]
[1763451843830,9.78882769,137.78,137.75,4.52]
[1763451844238,0.71,137.77,137.75,4.52]
[1763451844532,9.78882769,137.76,137.68,0.66]
[1763451844851,12.97219998,137.75,137.68,12.97219998]
[1763451845036,13.68219998,137.75,137.68,12.97219998]
[1763451845236,9.78882769,137.73,137.68,12.97219998]
[1763451845554,0.71,137.74,137.56,7.99757979]
[1763451845555,18.12096,137.66,137.56,7.99757979]
[1763451845724,9.78882769,137.59,137.54,0.66]
[1763451845919,9.78882769,137.59,137.54,5.18]
[1763451846340,23.47102767,137.59,137.54,5.18]
[1763451846535,9.78882769,137.59,137.55,0.66]
[1763451847037,0.71,137.59,137.54,4.52]
[1763451847243,0.71,137.59,137.54,5.18]
[1763451847619,0.71,137.59,137.54,4.52]
[1763451847926,0.71,137.59,137.55,0.66]
[1763451848139,9.78882769,137.6,137.55,13.63219998]
[1763451848336,0.71,137.59,137.55,0.66]
[1763451848641,9.78882769,137.6,137.55,13.63219998]
[1763451848831,0.71,137.59,137.55,13.63219998]
[1763451849035,0.71,137.59,137.56,4.52]
[1763451849333,0.71,137.59,137.55,13.63219998]
[1763451849334,9.78882769,137.58,137.55,4.52]
[1763451849538,9.78882769,137.58,137.53,31.09315998]
[1763451849841,9.78882769,137.58,137.54,12.97219998]
[1763451850021,10.49882769,137.58,137.54,12.97219998]
[1763451850220,10.49882769,137.58,137.54,17.49219998]
[1763451850531,9.78882769,137.56,137.53,18.12096]
[1763451850732,9.78882769,137.56,137.53,22.64096]
[1763451850924,10.49882769,137.56,137.53,22.64096]
[1763451851338,10.49882769,137.56,137.53,35.61315998]
[1763451851514,0.71,137.59,137.54,12.97219998]
[1763451851718,9.78882769,137.57,137.53,35.61315998]
[1763451852136,10.46882769,137.57,137.53,35.61315998]
[1763451852354,12.97219998,137.54,137.5,0.2]
[1763451852641,9.78882769,137.53,137.5,0.2]
[1763451852833,22.76102767,137.52,137.5,0.2]
[1763451853034,23.44102767,137.52,137.5,0.2]
[1763451853236,10.46882769,137.51,137.5,0.2]
[1763451853748,9.78882769,137.51,137.5,13.17219998]
[1763451853947,9.78882769,137.51,137.5,0.2]
[1763451854252,10.46882769,137.51,137.5,0.2]
[1763451854446,9.78882769,137.51,137.5,0.2]
[1763451855240,5.09772091,137.61,137.5,13.83219998]
[1763451855241,0.68,137.57,137.5,13.83219998]
[1763451855421,0.68,137.57,137.54,12.97219998]
[1763451855630,9.78882769,137.56,137.53,12.97219998]
[1763451855830,9.78882769,137.59,137.55,12.97219998]
[1763451856156,9.78882769,137.59,137.54,4.52]
[1763451856157,9.78882769,137.58,137.54,4.52]
[1763451856336,10.46882769,137.58,137.54,4.52]
[1763451856547,0.68,137.57,137.52,12.97219998]
[1763451856736,0.68,137.57,137.52,17.49219998]
[1763451857226,22.76102767,137.56,137.52,4.52]
[1763451857546,9.78882769,137.56,137.52,4.52]
[1763451857755,9.78882769,137.54,137.52,4.52]
[1763451858242,10.46882769,137.53,137.52,4.52]
[1763451858618,9.78882769,137.53,137.52,4.52]
[1763451858844,10.46882769,137.53,137.52,4.52]
[1763451859046,9.78882769,137.52,137.5,0.2]
[1763451859350,10.46882769,137.52,137.5,0.2]
[1763451859525,10.46882769,137.51,137.5,0.2]
[1763451861958,9.78882769,137.51,137.5,0.2]
[1763451862325,9.78882769,137.51,137.5,17.69219998]
[1763451862530,9.78882769,137.51,137.5,4.72]
[1763451863122,10.46882769,137.51,137.5,0.2]
[1763451863751,0.68,137.54,137.5,0.2]
[1763451863933,9.78882769,137.53,137.5,0.2]
[1763451864135,0.68,137.52,137.5,13.17219998]
[1763451864456,9.78882769,137.54,137.5,0.2]
[1763451864665,18.12096,137.53,137.5,0.2]
[1763451864948,9.78882769,137.52,137.5,13.17219998]
[1763451865253,9.78882769,137.52,137.5,0.2]
[1763451865451,10.46882769,137.52,137.5,0.2]
[1763451865639,10.46882769,137.51,137.5,0.2]
[1763451867731,2.0,137.63,137.5,13.83219998]
[1763451867932,9.78882769,137.57,137.52,12.97219998]
[1763451868245,8.59694715,137.64,137.55,12.97219998]
[1763451868246,0.68,137.59,137.55,12.97219998]
[1763451868429,18.12096,137.58,137.55,17.49219998]
[1763451868760,9.78882769,137.57,137.55,17.49219998]
[1763451868956,0.68,137.58,137.55,17.49219998]
[1763451869267,18.12096,137.59,137.55,4.52]
[1763451869554,9.78882769,137.58,137.55,4.52]
[1763451869766,10.47882769,137.58,137.55,4.52]
[1763451870132,9.78882769,137.58,137.55,4.52]
[1763451870329,9.78882769,137.56,137.55,4.52]
[1763451870545,27.90978769,137.56,137.55,4.52]
[1763451870751,28.59978769,137.56,137.55,4.52]
[1763451871164,9.78882769,137.55,137.51,17.49219998]
[1763451871560,9.78882769,137.53,137.51,4.52]
[1763451871773,22.76102767,137.53,137.5,0.2]
[1763451871954,9.78882769,137.51,137.5,0.2]
[1763451872678,9.78882769,137.54,137.5,13.17219998]
[1763451872987,9.78882769,137.54,137.53,12.97219998]
[1763451873157,0.69,137.6,137.53,12.97219998]
[1763451873354,0.69,137.6,137.55,12.97219998]
[1763451873572,9.78882769,137.59,137.56,12.97219998]
[1763451873769,9.78882769,137.59,137.57,4.52]
[1763451873965,0.69,137.59,137.57,4.52]
[1763451874154,9.78882769,137.61,137.57,17.49219998]
[1763451874359,10.47882769,137.61,137.57,17.49219998]
[1763451874862,9.78882769,137.68,137.59,12.97219998]
[1763451875190,12.97219998,137.63,137.57,17.49219998]
[1763451875357,10.47882769,137.62,137.57,17.49219998]
[1763451875562,10.47882769,137.62,137.58,12.97219998]
[1763451875773,9.78882769,137.6,137.57,4.52]
[1763451876085,10.47882769,137.63,137.58,12.97219998]
[1763451876456,0.69,137.62,137.58,12.97219998]
[1763451876660,0.69,137.62,137.57,5.18]
[1763451876874,0.69,137.62,137.57,4.52]
[1763451877181,9.78882769,137.61,137.57,4.52]
[1763451877358,9.78882769,137.6,137.57,4.52]
[1763451877564,23.45102767,137.6,137.57,4.52]
[1763451877764,9.78882769,137.58,137.57,4.52]
[1763451877962,22.76102767,137.58,137.5,0.2]
[1763451878174,0.69,137.59,137.5,0.2]
[1763451878175,9.78882769,137.56,137.53,12.97219998]
[1763451878372,9.78882769,137.56,137.51,4.52]
[1763451878576,0.69,137.56,137.53,12.97219998]
[1763451878778,9.78882769,137.58,137.55,12.97219998]
[1763451878985,9.78882769,137.6,137.56,4.52]
[1763451879182,10.47882769,137.6,137.57,4.52]
[1763451879691,0.69,137.59,137.57,4.52]
[1763451879986,9.78882769,137.58,137.57,4.52]
[1763451880283,9.78882769,137.58,137.55,12.97219998]
[1763451880467,9.78882769,137.56,137.54,17.49219998]
[1763451880668,9.78882769,137.56,137.54,4.52]
[1763451880882,9.78882769,137.56,137.55,12.97219998]
[1763451881074,9.78882769,137.56,137.54,4.52]
[1763451881455,0.69,137.56,137.54,4.52]
[1763451881662,10.47882769,137.59,137.54,4.52]
[1763451881883,9.78882769,137.57,137.54,17.49219998]
[1763451882257,0.66,137.57,137.54,17.49219998]
[1763451882461,0.66,137.57,137.54,4.52]
[1763451883069,0.66,137.57,137.54,17.49219998]
[1763451883270,0.66,137.57,137.54,4.52]
[1763451885561,9.78882769,137.56,137.54,4.52]
[1763451885884,9.78882769,137.56,137.52,7.47022597]
[1763451886086,9.78882769,137.54,137.51,4.52]
[1763451886297,9.78882769,137.54,137.51,11.99022597]
[1763451886600,9.78882769,137.52,137.51,4.52]
[1763451886765,9.78882769,137.52,137.51,11.99022597]
[1763451887082,9.78882769,137.52,137.51,4.52]
[1763451887480,9.78882769,137.53,137.51,4.52]
[1763451887682,0.66,137.53,137.51,11.99022597]
[1763451887883,9.78882769,137.54,137.52,7.47022597]
[1763451888270,9.78882769,137.57,137.52,7.47022597]
[1763451888461,0.66,137.54,137.51,4.52]
[1763451888882,0.66,137.54,137.52,7.47022597]
[1763451889310,0.66,137.54,137.51,11.99022597]
[1763451889663,0.66,137.54,137.51,4.52]
[1763451890177,0.66,137.54,137.52,7.47022597]
[1763451890491,0.66,137.54,137.51,4.52]
[1763451890695,0.66,137.54,137.52,7.47022597]
[1763451891100,0.66,137.54,137.51,4.52]
[1763451891263,9.78882769,137.53,137.5,0.2]
[1763451891468,17.25905366,137.53,137.5,0.2]
[1763451891688,9.78882769,137.51,137.5,0.2]
[1763451892195,0.66,137.51,137.5,0.2]
[1763451892393,10.44882769,137.51,137.5,0.2]
[1763451892691,9.78882769,137.51,137.5,0.2]
[1763451892899,10.44882769,137.51,137.5,0.2]
[1763451893600,9.78882769,137.51,137.5,7.67022597]
[1763451894298,9.78882769,137.55,137.5,8.37022597]
[1763451894513,9.78882769,137.55,137.53,7.47022597]
[1763451894869,9.78882769,137.55,137.52,7.47022597]
[1763451895667,9.78882769,137.55,137.51,5.22]
[1763451895906,10.44882769,137.54,137.51,4.52]
[1763451896271,0.66,137.53,137.51,4.52]
[1763451896478,0.66,137.54,137.51,4.52]
[1763451896788,7.47022597,137.56,137.51,4.52]
[1763451897095,18.12096,137.57,137.51,4.52]
[1763451897096,7.47022597,137.55,137.51,4.52]
[1763451897484,7.47022597,137.52,137.5,0.2]
[1763451897672,7.47022597,137.51,137.5,0.2]
[1763451898699,10.44882769,137.51,137.5,0.2]
[1763451898894,17.91905366,137.51,137.5,0.2]
[1763451899370,10.44882769,137.51,137.5,0.2]
[1763451900192,17.91905366,137.51,137.5,0.2]
[1763451900399,9.78882769,137.5,137.47,0.2]
[1763451900609,18.12096,137.52,137.47,0.2]
[1763451900819,9.78882769,137.52,137.47,0.9]
[1763451900984,0.66,137.49,137.47,0.2]
[1763451901183,7.47022597,137.48,137.47,0.2]
[1763451901691,18.12096,137.46,137.45,0.2]
[1763451901892,25.59118597,137.46,137.45,0.2]
[1763451902093,26.25118597,137.46,137.39,0.2]
[1763451902305,7.47022597,137.4,137.39,0.2]
[1763451902487,0.66,137.45,137.39,0.2]
[1763451902807,18.12096,137.46,137.41,7.47022597]
[1763451903007,18.12096,137.46,137.42,7.47022597]
[1763451903210,9.78882769,137.45,137.4,0.7]
[1763451903378,9.78882769,137.45,137.41,7.47022597]
[1763451903580,0.66,137.5,137.42,7.47022597]
[1763451903812,0.66,137.5,137.4,0.7]
[1763451903813,9.78882769,137.48,137.43,7.47022597]
[1763451904006,17.25905366,137.48,137.42,0.7]
[1763451904213,18.12096,137.49,137.42,0.7]
[1763451904214,9.78882769,137.46,137.42,0.7]
[1763451904582,17.91905366,137.46,137.4,0.7]
[1763451904781,17.25905366,137.43,137.39,0.2]
[1763451904988,17.25905366,137.41,137.39,0.2]
[1763451905214,18.12096,137.43,137.39,0.2]
[1763451905215,25.59118597,137.43,137.39,0.2]
[1763451905519,9.78882769,137.42,137.39,0.9]
[1763451905810,7.47022597,137.41,137.39,0.2]
[1763451906110,9.78882769,137.4,137.39,0.2]
[1763451906685,17.25905366,137.4,137.39,0.2]
[1763451906884,9.78882769,137.4,137.39,0.2]
[1763451907082,10.44882769,137.4,137.39,0.2]
[1763451907312,17.25905366,137.4,137.39,0.2]
[1763451907613,36.04001366,137.4,137.39,0.2]
[1763451907912,17.25905366,137.38,137.37,0.2]
[1763451908319,9.78882769,137.38,137.37,0.2]
[1763451908812,17.25905366,137.38,137.37,0.2]
[1763451909223,10.44882769,137.38,137.37,0.2]
[1763451909399,9.78882769,137.38,137.37,0.9]
[1763451909610,7.47022597,137.46,137.37,12.89022597]
[1763451909795,8.13022597,137.47,137.41,7.47022597]
[1763451910119,7.47022597,137.49,137.43,7.47022597]
[1763451910316,7.47022597,137.48,137.42,8.17022597]
[1763451911211,18.78096,137.5,137.42,8.17022597]
[1763451911212,7.47022597,137.47,137.42,0.7]
[1763451911430,7.47022597,137.44,137.39,0.7]
[1763451911723,9.78882769,137.44,137.4,7.47022597]
[1763451911918,9.78882769,137.45,137.41,7.47022597]
[1763451912290,9.78882769,137.45,137.4,7.47022597]
[1763451912495,17.97905366,137.45,137.39,7.47022597]
[1763451912797,17.25905366,137.42,137.37,12.19022597]
[1763451913001,17.25905366,137.42,137.37,4.72]
[1763451913302,9.78882769,137.38,137.37,0.2]
[1763451913923,9.78882769,137.38,137.37,8.37022597]
[1763451914615,9.78882769,137.42,137.37,8.37022597]
[1763451914821,9.78882769,137.42,137.37,0.9]
[1763451915002,9.78882769,137.4,137.37,4.72]
[1763451915404,0.72,137.43,137.37,4.72]
[1763451915593,17.25905366,137.41,137.37,4.72]
[1763451916009,17.97905366,137.41,137.37,4.72]
[1763451916519,17.25905366,137.38,137.37,0.2]
[1763451916833,9.78882769,137.38,137.37,0.2]
[1763451918731,9.78882769,137.38,137.37,8.37022597]
[1763451919223,9.78882769,137.38,137.37,0.9]
[1763451919805,9.78882769,137.38,137.37,0.2]
[1763451920598,0.71,137.46,137.37,8.38022597]
[1763451920802,0.71,137.51,137.4,18.12096]
[1763451921034,7.47022597,137.46,137.38,23.35096]
[1763451921242,7.47022597,137.45,137.39,8.18022597]
[1763451921439,8.18022597,137.47,137.41,7.47022597]
[1763451921733,9.78882769,137.46,137.4,0.71]
[1763451921915,9.78882769,137.43,137.4,0.71]
[1763451922324,17.25905366,137.44,137.39,4.52]
[1763451922526,0.71,137.46,137.37,0.2]
[1763451922527,9.78882769,137.41,137.37,0.2]
[1763451922825,9.78882769,137.39,137.37,0.2]
[1763451923401,0.71,137.41,137.37,0.2]
[1763451923402,8.18022597,137.41,137.37,0.2]
[1763451923629,9.78882769,137.39,137.37,0.2]
[1763451923830,7.47022597,137.41,137.37,0.2]
[1763451924037,35.38001366,137.38,137.37,0.2]
[1763451924418,9.78882769,137.38,137.37,0.2]
[1763451924618,9.78882769,137.38,137.37,8.38022597]
[1763451924921,9.78882769,137.43,137.37,8.38022597]
[1763451925225,7.47022597,137.49,137.39,18.12096]